[Event "Arona Festival 2024"]
[Site "Arona Tenerife"]
[Date "2024.06.23"]
[Round "2.5"]
[White "Garcia Blanco, Omar"]
[Black "Socko, Bartosz"]
[Result "0-1"]
[ECO "C11"]
[WhiteElo "2365"]
[BlackElo "2556"]
[Annotator "TA"]
[PlyCount "64"]
[EventDate "2024.06.20"]
[EventType "swiss"]
[EventCountry "ESP"]
[SourceTitle "playchess.com"]
[Source "ChessBase"]
[SourceQuality "1"]
[TimeControl "5400+30"]

{[%evp 16,64,4,0,31,13,15,0,0,0,0,-97,-102,-195,-168,-197,-193,-203,-193,-193,-93,-96,-103,-96,0,-148,-143,-117,-177,-190,-123,-217,-123,-744,-752,-752,-734,-729,-702,-702,-642,-624,-614,-885,-631,-997,-997,-989,-991,-29997,0]} 1. e4 {[%emt 0:02:53]} e6 {[%emt 0:00:05]} 2. d4 {[%emt 0:00:08]} d5 {[%emt 0:00:04]} 3. Nc3 {[%emt 0:01:01]} Nf6 {[%emt 0:00:08]} 4. e5 {[%emt 0:00:06]} Nfd7 {[%emt 0:00:05]} 5. f4 {[%emt 0:00:18]} c5 {[%emt 0:00:05]} 6. Nf3 {[%emt 0:00:06]} Nc6 {[%emt 0:00:05]} 7. Ne2 {[%emt 0:02:48]} Be7 {[%emt 0:02:56]} 8. c3 {[%emt 0:01:41][%cal Bc2c3,Bc3d4][%mdl 32]} O-O {[%emt 0:00:19]} 9. g3 {[%emt 0:00:33]} cxd4 {[%emt 0:01:45]} 10. cxd4 {[%emt 0:02:56]} f6 {[%emt 0:00:49]} 11. Bh3 {[%emt 0:08:57]} fxe5 {[%emt 0:01:05] The position is equal.} 12. dxe5 {[%emt 0:00:28][%cal Oe1g1]} (12. Bxe6+ Kh8 13. Bxd7 (13. dxe5 $2 Ndxe5 14. Nxe5 Bxe6 $19) 13... Qxd7 $17 (13... Bxd7 14. Nxe5 Nxe5 15. dxe5 $17)) 12... Qb6 {[%emt 0:05:40][%cal Od7e5]} 13. Bxe6+ {[%emt 0:27:32]} (13. a3 $1 $11) 13... Kh8 $17 {[%emt 0:00:35][%cal Od7e5] ...Ndxe5! would now be deadly.} 14. Bxd5 {[%emt 0:00:03] [#]} (14. Qxd5 $2 Nc5 15. Be3 (15. Bxc8 $2 Nb4 $19) 15... Bxe6 $19) (14. Bxd7 $17 {might work better.} Bxd7 15. Qb3) 14... Ndxe5 $1 {[%emt 0:01:14][%mdl 512]} 15. Nxe5 {[%emt 0:01:48]} (15. fxe5 Nxe5 16. Nf4 (16. Nxe5 $2 Bb4+ $19) 16... Bg4 $19) 15... Nxe5 {[%emt 0:00:42]} (15... Bb4+ 16. Bd2 Nxe5 17. Qb3 $17) 16. Qb3 {[%emt 0:00:28]} Bb4+ {[%emt 0:05:03]} 17. Bd2 {[%emt 0:00:41][%cal Oe1c1]} Bxd2+ {[%emt 0:08:14]} (17... Nc6 $1 $19 {has better winning chances.} 18. O-O-O Re8) 18. Kxd2 {[%emt 0:00:06]} Qa5+ {[%emt 0:00:08]} 19. Nc3 {[%emt 0:00:48] [#]} Ng4 {[%emt 0:02:24]} ({Black should play} 19... Rd8 $1 $17 20. Rad1 (20. fxe5 $2 Be6 $19) 20... Ng4) 20. Qa3 {[%emt 0:28:31] [#]} (20. h3 $11 Nf6 21. Rae1) 20... Qd8 $1 {[%emt 0:00:49][%mdl 1024] Black has strong compensation.} 21. Rhe1 {[%emt 0:04:05] Repels Be6} Bf5 {[%emt 0:00:42][%cal Od8b6] Strongly threatening ...Qb6!} 22. h3 {[%emt 0:07:54]} Nf6 {[%emt 0:00:52]} (22... Nh2 $19 {White must now prevent ...Nf3+.} 23. Re7 Qb6 (23... Bxh3 24. Rh1 $11)) 23. Rad1 {[%emt 0:00:24]} (23. Re5 $17 Bxh3 24. Qb3) 23... Qb6 {[%emt 0:26:04]} ({Better is} 23... Nxd5 $19 24. Kc1 Re8 (24... Rc8 $2 25. Rxd5 Qb6 26. Rd2 $17) 25. Rxe8+ Qxe8 26. Rxd5 Qe3+ (26... Bxh3 27. Re5 $11) 27. Kd1 Re8 (27... Bxh3 28. Ne2 $15)) 24. Re3 {[%emt 0:07:32][%mdl 8192] This move loses the game for White.} ({Much weaker is} 24. Kc1 Nxd5 25. Rxd5 Qf2 $19 (25... Bxh3 26. Qc5 $11)) (24. Bb3 $17) 24... Rfe8 $19 {[%emt 0:02:43]} (24... Bxh3 $2 25. Rde1 $19) 25. Rxe8+ {[%emt 0:00:40]} Rxe8 {[%emt 0:40:24][%csl Ge8][%cal Rb6e3]} 26. Kc1 {[%emt 0:00:29]} Qe3+ {[%emt 0:00:00]} ({Less strong is} 26... Bxh3 27. Bf7 Qe3+ 28. Kb1 $17) 27. Rd2 {[%emt 0:00:05]} Qe1+ {[%emt 0:01:00]} (27... Bxh3 $2 28. Bxb7 Rb8 (28... Qxg3 29. Qxa7 Re1+ 30. Nd1 $17) 29. Qa6 $19) 28. Rd1 {[%emt 0:00:07]} Qxg3 {[%emt 0:00:00]} 29. Qa4 {[%emt 0:01:20]} Rc8 {[%emt 0:00:00] ( -> ...Rxc3+)} 30. Qb4 {[%emt 0:00:31]} Qe3+ {[%emt 0:00:00]} 31. Rd2 {[%emt 0:00:03]} Nxd5 {[%emt 0:00:00]} 32. Qxb7 {[%emt 0:00:07]} Qe1+ {[%emt 0:00:00][%mdl 32768] Weighted Error Value: White=1.18/Black=0.39.  Loses game:     	White=1     	---        Mistake:       	White=4     	Black=4      OK:         	White=3     	Black=3      Best:        	White=2     	Black=4      Strong:       	---       	Black=1     . Loss on time!?} 0-1

[Event "Arona Festival 2024"]
[Site "Arona Tenerife"]
[Date "2024.06.23"]
[Round "2.6"]
[White "Sankalp Gupta"]
[Black "Vega Gutierrez, Sabrina"]
[Result "1/2-1/2"]
[ECO "D41"]
[WhiteElo "2552"]
[BlackElo "2368"]
[Annotator "TA"]
[PlyCount "79"]
[EventDate "2024.06.20"]
[EventType "swiss"]
[EventCountry "ESP"]
[SourceTitle "playchess.com"]
[Source "ChessBase"]
[SourceQuality "1"]
[TimeControl "5400+30"]

{[%evp 26,79,0,0,0,0,8,0,0,0,0,0,0,0,0,-1,-7,-27,-20,-15,-16,-14,-10,-9,-9,-6,-8,-102,-89,-87,-95,-100,-106,-125,-118,-122,-123,-122,-104,-86,-40,-42,-35,-38,-37,-31,-30,-31,-31,-37,-14,-52,-14,-14,-14,-14]} 1. d4 {[%emt 0:05:43]} Nf6 {[%emt 0:00:54]} 2. Nf3 {[%emt 0:00:23]} d5 {[%emt 0:01:30]} 3. c4 {[%emt 0:01:14]} e6 {[%emt 0:00:21]} 4. Nc3 {[%emt 0:00:04]} c5 {[%emt 0:04:16]} 5. cxd5 Nxd5 {[%emt 0:00:11]} 6. e4 {[%emt 0:01:42]} Nxc3 7. bxc3 {[%emt 0:00:04]} cxd4 8. cxd4 {[%emt 0:00:03]} Bb4+ {[%emt 0:00:28]} 9. Bd2 {[%emt 0:00:03]} Bxd2+ 10. Qxd2 {[%emt 0:00:03]} O-O {[%emt 0:00:27]} 11. Bc4 {[%emt 0:00:47]} Nd7 {[%emt 0:05:41]} 12. O-O {[%emt 0:03:17]} b6 {[%emt 0:00:15]} 13. Rad1 {[%emt 0:04:36]} Bb7 {[%emt 0:00:10]} 14. Rfe1 {[%emt 0:00:06]} Rc8 {[%emt 0:00:29]} 15. Bd3 {[%emt 0:11:27]} h6 {[%emt 0:03:19]} 16. Bb1 {[%emt 0:11:21]} Qc7 {[%emt 0:03:04]} 17. d5 {[%emt 0:06:25]} exd5 {[%emt 0:08:29]} 18. exd5 {[%emt 0:00:04]} Rfe8 {[%emt 0:01:20] Wards off Re7} 19. d6 {[%emt 0:10:38]} Qc5 {[%emt 0:06:10]} 20. Rxe8+ {[%emt 0:07:35]} Rxe8 {[%emt 0:01:29]} 21. Qc2 {[%emt 0:14:13]} Qxc2 {[%emt 0:12:31]} 22. Bxc2 {[%emt 0:00:46]} Bxf3 {[%emt 0:00:07]} 23. gxf3 $11 {[%emt 0:00:03][%mdl 4096] Endgame. KRB-KRN} Rd8 {[%emt 0:07:27]} 24. Kg2 {[%emt 0:01:23]} Nf6 {[%emt 0:06:49]} 25. Ba4 {[%emt 0:01:17]} Kf8 {[%emt 0:04:07]} 26. Rc1 {[%emt 0:01:40]} (26. d7 $11 {keeps the balance.}) 26... Nd5 $1 $17 {[%emt 0:02:43]} (26... Rxd6 27. Rc8+ Ke7 28. Rc7+ Kf8 29. Rc8+ Ke7 30. Rc7+ Kf8 31. Rc8+ $11) 27. Rc6 {[%emt 0:05:06] [#]} Nf4+ $1 {[%emt 0:00:36]} 28. Kf1 {[%emt 0:02:51] [#]} Ne6 $1 {[%emt 0:00:45]} 29. f4 {[%emt 0:05:05]} Nd4 {[%emt 0:03:28]} (29... Nxf4 30. Bb3 $15) 30. Rc7 {[%emt 0:00:21]} b5 {[%emt 0:01:58]} ({Resist} 30... Rxd6 31. Rxa7 b5 32. Bd1 $15) 31. Bd1 {[%emt 0:00:03]} a6 {[%emt 0:08:27]} ({Don't take} 31... Rxd6 32. Rxa7 g6 33. a4) 32. d7 {[%emt 0:00:24]} Ke7 {[%emt 0:02:32]} (32... Ne6 $17 33. Ra7 Nc5) 33. Ra7 $15 {[%emt 0:00:05]} ({Avoid the trap} 33. Bg4 $2 f5 34. Be2 Rxd7 $19) 33... Rxd7 {[%emt 0:00:25]} 34. Rxa6 {[%emt 0:00:09]} Ne6 {[%emt 0:07:53]} 35. Bg4 {[%emt 0:00:03]} Rd4 {[%emt 0:00:20]} 36. Bxe6 $1 fxe6 {[%emt 0:00:04]} 37. Ra5 {[%emt 0:02:55]} Rb4 {[%emt 0:04:16]} 38. Kg2 {[%emt 0:00:27]} Kf6 {[%emt 0:00:07]} 39. Kg3 {[%emt 0:00:11]} Rb2 {[%emt 0:01:27]} 40. a4 {Weighted Error Value: White=0.10 (very precise) /Black=0.05 (flawless) .  Mistake:       	White=1     	Black=1      Inaccurate:     	White=1     	Black=1      OK:         	White=10    	Black=11     Best:        	---       	Black=2      Strong:       	White=1     	Black=3} 1/2-1/2

[Event "Arona Festival 2024"]
[Site "Arona Tenerife"]
[Date "2024.06.23"]
[Round "2.7"]
[White "Savitha Shri B"]
[Black "Erdos, Viktor"]
[Result "0-1"]
[ECO "B28"]
[WhiteElo "2356"]
[BlackElo "2539"]
[Annotator "TA"]
[PlyCount "82"]
[EventDate "2024.06.20"]
[EventType "swiss"]
[EventCountry "ESP"]
[SourceTitle "playchess.com"]
[Source "ChessBase"]
[SourceQuality "1"]
[TimeControl "5400+30"]

{[%evp 9,82,0,0,0,0,0,0,0,0,-9,-14,-18,-4,0,0,-53,-28,-40,-46,-58,-38,-103,-90,-104,-117,-127,-118,-160,-167,-166,-149,-156,-145,-202,-214,-210,-225,-214,-226,-196,-97,-103,-91,-115,-111,-111,-111,-114,-109,-211,-201,-198,-212,-232,-218,-331,-324,-521,-542,-555,-538,-626,-612,-669,-666,-683,-632,-693,-687,-891,-656,-950,-954,-1380,-1237]} 1. e4 {[%emt 0:03:47]} c5 {[%emt 0:04:41]} 2. Nf3 {[%emt 0:00:18]} a6 {[%emt 0:00:06]} 3. c4 {[%emt 0:01:05]} Nc6 {[%emt 0:00:40]} 4. Nc3 {[%emt 0:00:09]} e5 {[%emt 0:08:07]} 5. Be2 {[%emt 0:02:14]} d6 {[%emt 0:01:09]} 6. O-O {[%emt 0:01:57]} Be7 {[%emt 0:01:31]} 7. d3 {[%emt 0:03:46]} f5 {[%emt 0:07:41]} 8. exf5 {[%emt 0:10:38] The position is equal.} Bxf5 {[%emt 0:00:46]} 9. Nd5 {[%emt 0:00:38]} Nf6 {[%emt 0:01:37]} 10. Nh4 {[%emt 0:11:01]} Be6 {[%emt 0:01:27][%cal Bf5e6,Be6g8,Bg8d5,Bd5c6][%mdl 32]} 11. Nxe7 {[%emt 0:09:58]} Qxe7 {[%emt 0:00:11]} 12. f4 {[%emt 0:00:06]} (12. Bg5 $11) 12... O-O-O {[%emt 0:09:56]} 13. Nf3 {[%emt 0:06:48]} Rhe8 {[%emt 0:05:06]} 14. Ng5 {[%emt 0:07:56]} Bg8 {[%emt 0:01:33]} 15. Bf3 {[%emt 0:03:31]} ({White should play} 15. Re1 $15) 15... d5 $17 {[%emt 0:12:55]} 16. cxd5 {[%emt 0:00:50]} Bxd5 {[%emt 0:00:15]} (16... Nxd5 17. fxe5 h6 (17... Qxe5 18. Be4 $15) (17... Nxe5 18. Bh5 $15) 18. Ne4 $15) 17. fxe5 {[%emt 0:12:10]} Nxe5 {[%emt 0:14:21]} 18. Be2 {[%emt 0:05:17]} h6 {[%emt 0:11:50]} 19. Nh3 {[%emt 0:00:04]} Bc6 {[%emt 0:01:53]} 20. Bf4 {[%emt 0:04:40]} Qd6 {[%emt 0:03:54] Black has more active pieces.} 21. Nf2 {[%emt 0:03:48]} (21. Bxe5 $17 {was worth a try.} Rxe5 (21... Qxe5 $2 22. Bf3 $19) 22. Bf3) 21... Qd5 $19 {[%emt 0:07:22]} 22. Bf3 {[%emt 0:00:14]} Nxf3+ {[%emt 0:00:34]} 23. Qxf3 {[%emt 0:00:01]} Qxf3 {[%emt 0:01:53]} 24. gxf3 {[%emt 0:00:01]} Nd5 {[%emt 0:02:14]} (24... Nh5 $19 {and Black stays clearly on top.} 25. Bg3 Nxg3 (25... Bxf3 $2 26. Rac1 $19) 26. hxg3 Rf8 (26... Bxf3 $2 27. Rfc1 $19)) 25. Bg3 $17 {[%emt 0:00:48]} Nb4 {[%emt 0:00:34][%cal Ob7b6]} 26. Rac1 {[%emt 0:00:58]} b6 {[%emt 0:00:08]} 27. a3 {[%emt 0:03:20]} Nxd3 {[%emt 0:00:04]} 28. Nxd3 Rxd3 {[%emt 0:00:02]} 29. b4 {[%emt 0:02:30]} (29. Rfe1 $17 {was called for.}) 29... Rxa3 $19 {[%emt 0:00:44]} (29... Bxf3 30. a4 $17) 30. bxc5 {[%emt 0:00:01]} b5 {[%emt 0:00:10][%cal Oa6a5]} (30... Rxf3 31. Rxf3 Bxf3 32. cxb6+ Kb7 33. Rc7+ Kxb6 34. Rxg7 $11) (30... Bxf3 $2 {perishes.} 31. cxb6+ Kd8 (31... Kb7 32. Rc7+ Kb8 33. Rxg7+ Kc8 34. Rc1+ Kd8 35. Bc7+ Kc8 36. Be5+ Kd8 37. Bf6+) 32. b7 Bxb7 33. Rfd1+ Ke7 34. Re1+ Kf6 (34... Kf8 $2 35. Bd6+ Kf7 36. Rxe8 $18) 35. Rxe8 $18) 31. Rfe1 {[%emt 0:01:53]} Rae3 {[%emt 0:00:37]} 32. f4 {[%emt 0:02:56]} (32. Rxe3 {might work better.} Rxe3 33. Rd1) 32... a5 {[%emt 0:00:57]} 33. Red1 $2 {[%emt 0:00:28] [#]} (33. Rxe3 Rxe3 34. Re1 Rxe1+ 35. Bxe1) 33... b4 {[%emt 0:00:44] Black is clearly winning.} 34. Rd6 {[%emt 0:01:49]} Kb7 {[%emt 0:00:06]} 35. Rd4 {[%emt 0:01:11]} R3e4 {[%emt 0:00:50]} 36. Rd3 {[%emt 0:00:55]} Ka6 {[%emt 0:00:42]} 37. f5 {[%emt 0:00:10]} Kb5 {[%emt 0:00:04]} 38. Bf2 {[%emt 0:00:40]} a4 {[%emt 0:02:06] And now ...b3 would win.} 39. Rg3 {[%emt 0:00:39]} R8e7 {[%emt 0:00:00] [#] Threatens to win with ...b3.} 40. Rd1 {[%emt 0:00:29]} b3 {[%emt 0:00:00]} 41. h3 {[%emt 0:00:40]} Rf4 {[%emt 0:00:00] Weighted Error Value: White=0.61/Black=0.18 (very precise) .  Mistake:       	White=6     	Black=1      Inaccurate:     	White=1     	---        OK:         	White=10    	Black=16     Best:        	---       	Black=1} 0-1

[Event "Arona Festival 2024"]
[Site "Arona Tenerife"]
[Date "2024.06.23"]
[Round "2.8"]
[White "Stremavicius, Titas"]
[Black "Khayrullin, Denis"]
[Result "1/2-1/2"]
[ECO "A20"]
[WhiteElo "2538"]
[BlackElo "2359"]
[Annotator "TA"]
[PlyCount "51"]
[EventDate "2024.06.20"]
[EventType "swiss"]
[EventCountry "ESP"]
[SourceTitle "playchess.com"]
[Source "ChessBase"]
[SourceQuality "1"]
[TimeControl "5400+30"]

{[%evp 9,51,0,2,-2,0,-10,0,0,0,-1,6,-14,20,0,0,0,0,37,-19,-20,-27,-16,-31,-90,-92,-155,-157,-164,-95,-96,0,-150,0,-103,0,-141,0,-129,0,-160,0,-112,0,-161]} 1. c4 {[%emt 0:00:56]} e5 {[%emt 0:00:37]} 2. a3 {[%emt 0:07:34]} Nf6 {[%emt 0:03:05]} 3. d3 {[%emt 0:00:08]} Nc6 {[%emt 0:02:01]} 4. Nf3 {[%emt 0:01:47]} d5 {[%emt 0:07:52]} 5. cxd5 {[%emt 0:00:07]} Nxd5 {[%emt 0:00:05]} 6. e4 {[%emt 0:00:23]} Nb6 {[%emt 0:00:12]} 7. Be2 {[%emt 0:03:16]} Be7 {[%emt 0:01:30]} 8. Be3 {[%emt 0:07:39]} Be6 {[%emt 0:02:18]} 9. Nbd2 {[%emt 0:01:19]} O-O {[%emt 0:16:28]} 10. Rc1 {[%emt 0:08:52][%cal Oc1c6]} f5 {[%emt 0:00:25]} 11. Qc2 {[%emt 0:03:39]} Kh8 {[%emt 0:02:12]} 12. Nb3 {[%emt 0:05:50]} f4 {[%emt 0:10:29]} 13. Bd2 {[%emt 0:10:18]} a5 {[%emt 0:07:50]} (13... Qe8 $14) 14. Nc5 $11 {[%emt 0:00:26]} Bxc5 {[%emt 0:00:32]} 15. Qxc5 {[%emt 0:00:03]} Bg4 {[%emt 0:02:01]} 16. b4 {[%emt 0:29:36]} ({White should play} 16. Qb5 $15) 16... Bxf3 {[%emt 0:01:38]} 17. gxf3 {[%emt 0:00:17] [#]} (17. Bxf3 $142 axb4 (17... Qxd3 18. bxa5 Na4 19. Qc4 $15) 18. Bxb4 Qxd3 19. Rc3 Nxb4 20. Qxb4) 17... axb4 $1 $17 {[%emt 0:02:25]} 18. axb4 {[%emt 0:00:03]} Nd7 {[%emt 0:21:26]} (18... Qg5 $19 {Hoping for ...Na4.} 19. Kf1 Qf6 (19... Nd4 20. h4 $17)) 19. Qc4 {[%emt 0:04:15]} Nb6 {[%emt 0:02:05]} (19... Re8 $142 20. Bc3 Nb6) 20. Qc5 {[%emt 0:00:16]} Nd7 {[%emt 0:00:06]} ({Better is} 20... Qg5 {White must now prevent ...Na4.} 21. Kf1 Qh4 (21... Nd4 22. h4 $17)) 21. Qc4 $1 {[%emt 0:02:07]} Nb6 {[%emt 0:01:42]} 22. Qc5 {[%emt 0:00:15]} Nd7 {[%emt 0:00:08]} 23. Qc4 {[%emt 0:00:11]} Nb6 {[%emt 0:00:02]} 24. Qc5 {[%emt 0:00:06]} Nd7 {[%emt 0:00:24]} (24... Qf6 $142 25. Bd1 Rfd8) 25. Qc4 $1 {[%emt 0:00:04]} Nb6 {[%emt 0:00:12]} (25... Qf6 $17 26. Bc3 Nb6) 26. Qc5 {[%emt 0:00:02] Weighted Error Value: White=0.08 (flawless) /Black=0.51.  Mistake:       	White=2     	Black=6      Inaccurate:     	---       	Black=2      OK:         	White=6     	Black=4      Best:        	White=3     	---        Strong:       	White=2     	Black=1} 1/2-1/2

[Event "Arona Festival 2024"]
[Site "Arona Tenerife"]
[Date "2024.06.23"]
[Round "2.9"]
[White "Ortega Hermida, Daniel"]
[Black "Krysa, Leandro"]
[Result "0-1"]
[ECO "C77"]
[WhiteElo "2351"]
[BlackElo "2535"]
[Annotator "TA"]
[PlyCount "80"]
[EventDate "2024.06.20"]
[EventType "swiss"]
[EventCountry "ESP"]
[SourceTitle "playchess.com"]
[Source "ChessBase"]
[SourceQuality "1"]
[TimeControl "5400+30"]

{[%evp 14,80,8,-6,0,-1,-1,0,-1,-15,-20,-17,-7,-24,-12,-11,-6,-9,-3,0,0,0,-4,-35,-35,-59,-65,-61,-56,-95,-65,-156,-160,-190,-183,-260,-256,-234,-254,-295,-302,-270,-191,-215,-211,-168,-195,-235,-284,-408,-408,-385,-365,-512,-341,-341,-327,-353,-353,-352,-289,-611,-603,-491,0,-371,-344,-402,-392]} 1. e4 {[%emt 0:00:27]} e5 {[%emt 0:00:16]} 2. Nf3 {[%emt 0:00:07]} Nc6 {[%emt 0:00:16]} 3. Bb5 {[%emt 0:00:13]} a6 {[%emt 0:00:16]} 4. Ba4 {[%emt 0:00:06]} Nf6 {[%emt 0:00:13]} 5. Nc3 {[%emt 0:00:11]} Be7 {[%emt 0:01:51]} 6. d3 {[%emt 0:06:31]} b5 {[%emt 0:05:56]} 7. Bb3 {[%emt 0:00:05]} d6 {[%emt 0:00:35]} 8. a4 {[%emt 0:10:41]} Bg4 {[%emt 0:15:11]} 9. Be3 {[%emt 0:13:06] Wards off Nd4} Na5 {[%emt 0:05:31]} 10. Ba2 {[%emt 0:07:27]} b4 {[%emt 0:01:32] The position is equal.} 11. Nd5 {[%emt 0:04:52]} Nxd5 {[%emt 0:03:10]} 12. Bxd5 {[%emt 0:06:03]} c6 {[%emt 0:02:23]} 13. Ba2 {[%emt 0:00:12]} O-O {[%emt 0:11:03]} 14. h3 {[%emt 0:11:49]} Bxf3 {[%emt 0:03:10]} 15. Qxf3 {[%emt 0:00:06] [#]} b3 $1 $36 {[%emt 0:01:56][%mdl 2048] Black is pushing.} 16. cxb3 {[%emt 0:13:29]} Rb8 {[%emt 0:04:18]} 17. O-O {[%emt 0:07:47]} Nxb3 {[%emt 0:05:20]} 18. Rab1 {[%emt 0:02:53]} Qa5 {[%emt 0:09:13]} 19. Qd1 {[%emt 0:00:58]} Qxa4 {[%emt 0:02:47]} 20. Ra1 {[%emt 0:00:12]} c5 {[%emt 0:11:16]} 21. Bc1 {[%emt 0:04:29] Black continues to play with concentration.} Rb4 {[%emt 0:08:41] Black has more active pieces.} (21... Qa5 {simplifies} 22. Bd2 Qxd2 23. Bxb3 Qxd1 24. Bxd1 Rb6) 22. Bxb3 {[%emt 0:05:15]} (22. Bd2 $1 $15 Nxa1 23. Qxa1) 22... Qxa1 $17 {[%emt 0:00:41]} 23. Qc2 {[%emt 0:00:26]} Rfb8 {[%emt 0:02:48]} 24. Bd2 {[%emt 0:03:22] [#]} (24. Bg5 $142 Qxf1+ (24... Qa5 25. Bd2 $15) 25. Kxf1 Bxg5 26. Ba2) 24... Qxf1+ $3 $19 {[%mdl 512]} 25. Kxf1 {[%emt 0:00:03]} Rxb3 {[%emt 0:00:27]} 26. Bc1 {[%emt 0:01:19]} h6 {[%emt 0:00:57]} 27. Qc4 {[%emt 0:00:51]} R3b6 {[%emt 0:03:12]} 28. g3 {[%emt 0:00:53]} Bg5 {[%emt 0:00:22]} 29. Bxg5 hxg5 {[%emt 0:00:03][%mdl 4096] Endgame. KQ-KRR} 30. Kg2 {[%emt 0:00:47]} a5 {[%emt 0:01:13]} ({Don't do} 30... Rxb2 31. Qxa6 Rd8 32. Qc6) 31. Qd5 {[%emt 0:00:20]} (31. Kf3 {keeps fighting.}) 31... a4 {[%emt 0:00:40]} ({Much less strong is} 31... Rxb2 32. Qc6 $19) 32. Qc4 {[%emt 0:00:32]} Ra8 {[%emt 0:00:40]} (32... Rxb2 33. Qxa4 Rd2 34. Qa6 $19) 33. Qd5 {[%emt 0:00:08]} (33. Qc2 {was necessary.}) 33... Raa6 {[%emt 0:00:25]} 34. Qc4 {[%emt 0:01:00]} Ra5 {[%emt 0:00:32]} 35. Qc3 {[%emt 0:00:34]} Rab5 {[%emt 0:00:11]} 36. Qc2 {[%emt 0:00:22]} Rb4 {[%emt 0:00:31][%cal Ob6b8]} (36... Rxb2 37. Qxa4 g6 38. h4 $17) 37. Kf3 $2 {[%emt 0:00:20]} (37. h4) 37... Rb3 {[%emt 0:00:52][%cal Ob6b4]} (37... Rxb2 38. Qxa4 g6 39. Qa5 $19) 38. Qc4 {[%emt 0:01:02]} R3b4 {[%emt 0:00:21]} (38... Rxb2 39. Qxa4 g6 40. Qe8+ Kg7 41. h4 $17) 39. Qc2 {[%emt 0:00:16]} Rd4 {[%emt 0:00:15] Strongly threatening ...Rb3.} ({Weaker is} 39... Rxb2 40. Qxa4 g6 41. h4 $17) 40. Kg4 {[%emt 0:00:39]} Rb3 {[%emt 0:00:24] Weighted Error Value: White=0.40/Black=0.35.  Mistake:       	White=5     	---        Inaccurate:     	White=2     	Black=2      OK:         	White=10    	Black=18     Best:        	White=1     	Black=3      Brilliant:      	---       	Black=1} 0-1